fUST/lending_fUST_20251006
["ID","MTS","AMOUNT","RATE_DAILY","PERIOD"]
[389512889,1759690241370,-2983.63,0.00016712,2]
[389512890,1759690241379,-500.0,0.00016712,2]
[389512891,1759690241388,-500.0,0.00016712,2]
[389512892,1759690241398,-561.75,0.00016712,2]
[389512893,1759690241407,-5428.36,0.00016712,2]
[389512894,1759690241416,-653.69,0.00016712,2]
[389512895,1759690241426,-500.0,0.00016712,2]
[389512896,1759690241435,-919.66,0.00016712,2]
[389512897,1759690241445,-500.0,0.00016712,2]
[389512898,1759690241454,-1285.52,0.00016712,2]
[389512899,1759690241463,-500.0,0.00016712,2]
[389512900,1759690241473,-621.18,0.00016712,2]
[389512901,1759690241483,-1134.93,0.00016712,2]
[389512902,1759690241492,-500.0,0.00016712,2]
[389512903,1759690241501,-500.0,0.00016712,2]
[389512904,1759690241511,-3921.81,0.00016712,2]
[389512905,1759690241521,-512.86,0.00016712,2]
[389512906,1759690241530,-1191.71,0.00016712,2]
[389512907,1759690241539,-500.0,0.00016712,2]
[389512908,1759690241548,-617.49,0.00016712,2]
[389512909,1759690241558,-500.0,0.00016712,2]
[389512910,1759690241567,-2669.23,0.00016712,2]
[389512911,1759690241576,-3687.19,0.00016712,2]
[389512912,1759690241585,-590.44,0.00016712,2]
[389512913,1759690241595,-500.0,0.00016712,2]
[389512914,1759690241604,-500.0,0.00016712,2]
[389512915,1759690241612,-500.0,0.00016712,2]
[389512916,1759690241621,-594.65,0.00016712,2]
[389512917,1759690241630,-500.0,0.00016712,2]
[389512918,1759690241639,-873.61,0.00016712,2]
[389512919,1759690241647,-1974.94,0.00016712,2]
[389512920,1759690241656,-500.0,0.00016712,2]
[389512921,1759690241665,-1674.06,0.00016712,2]
[389512922,1759690241675,-671.95,0.00016712,2]
[389512923,1759690241684,-687.21,0.00016712,2]
[389512924,1759690241692,-1172.42,0.00016712,2]
[389512925,1759690241701,-3206.42,0.00016712,2]
[389512926,1759690241710,-1124.49,0.00016712,2]
[389512927,1759690241719,-2952.94,0.00016712,2]
[389512928,1759690241729,-1706.95,0.00016712,2]
[389512929,1759690241740,-870.65,0.00016712,2]
[389512930,1759690241751,-2360.24,0.00016712,2]
[389512931,1759690241760,-893.41,0.00016712,2]
[389512932,1759690241770,-500.0,0.00016712,2]
[389512933,1759690241780,-1400.52,0.00016712,2]
[389512934,1759690241790,-500.0,0.00016712,2]
[389512935,1759690241800,-766.29,0.00016712,2]
[389512936,1759690241810,-2388.91,0.00016712,2]
[389512937,1759690241821,-3105.25,0.00016712,2]
[389512938,1759690241836,-814.92,0.00016712,2]
[389512939,1759690241846,-500.0,0.00016712,2]
[389512940,1759690241856,-500.0,0.00016712,2]
[389512941,1759690241865,-1333.89,0.00016712,2]
[389512942,1759690241874,-3584.0,0.00016712,2]
[389512943,1759690241884,-1411.27,0.00016712,2]
[389512944,1759690241898,-500.0,0.00016712,2]
[389512945,1759690241910,-571.3,0.00016712,2]
[389512946,1759690241922,-7344.3,0.00016712,2]
[389512947,1759690241934,-547.55,0.00016712,2]
[389512948,1759690241948,-1343.31,0.00016712,2]
[389512949,1759690241970,-534.68,0.00016712,2]
[389512950,1759690241981,-500.0,0.00016712,2]
[389512951,1759690241992,-500.0,0.00016712,2]
[389512952,1759690242007,-684.92,0.00016712,2]
[389512953,1759690242019,-500.0,0.00016712,2]
[389512954,1759690242034,-500.0,0.00016712,2]
[389512955,1759690242048,-706.12,0.00016712,2]
[389512956,1759690242060,-500.0,0.00016712,2]
[389512957,1759690242073,-500.0,0.00016712,2]
[389512958,1759690242086,-829.25,0.00016712,2]
[389512959,1759690242099,-500.0,0.00016712,2]
[389512960,1759690242111,-500.0,0.00016712,2]
[389512961,1759690242123,-500.0,0.00016712,2]
[389512962,1759690242134,-1374.88,0.00016712,2]
[389512963,1759690242147,-500.0,0.00016712,2]
[389512964,1759690242159,-1686.64,0.00016712,2]
[389512965,1759690242170,-500.0,0.00016712,2]
[389512966,1759690242181,-1683.72,0.00016712,2]
[389512967,1759690242193,-2085.55,0.00016712,2]
[389512968,1759690242204,-500.0,0.00016712,2]
[389512969,1759690242215,-854.67,0.00016712,2]
[389512970,1759690242225,-1428.18,0.00016712,2]
[389512971,1759690242237,-5191.0,0.00016712,2]
[389512972,1759690242249,-500.0,0.00016712,2]
[389512973,1759690242261,-635.25,0.00016712,2]
[389512974,1759690242271,-518.49,0.00016712,2]
[389512975,1759690242283,-500.0,0.00016712,2]
[389512976,1759690242293,-208.14443627,0.00016728,2]
[389512977,1759690242303,-300.0,0.00016766,2]
[389512978,1759690242313,-300.0,0.00016766,2]
[389512979,1759690242325,-300.0,0.00016766,2]
[389512980,1759690242336,-300.0,0.00016766,2]
[389512981,1759690242348,-300.0,0.00016766,2]
[389512982,1759690242359,-300.0,0.00016766,2]
[389512983,1759690242371,-300.0,0.00016766,2]
[389512984,1759690242384,-300.0,0.00016766,2]
[389512985,1759690242395,-300.0,0.00016766,2]
[389512986,1759690242406,-300.0,0.00016766,2]
[389512987,1759690242418,-300.0,0.00016766,2]
[389512988,1759690242431,-300.0,0.00016766,2]
[389512989,1759690242443,-300.0,0.00016766,2]
[389512990,1759690242456,-300.0,0.00016766,2]
[389512991,1759690242468,-300.0,0.00016766,2]
[389512992,1759690242478,-600.0,0.00016766,2]
[389512993,1759690242489,-324.0,0.00016838,2]
[389512994,1759690242499,-345.0,0.00016865,2]
[389512995,1759690242510,-231.20851096,0.00016986,2]
[389512996,1759690242520,-500.0,0.00016986,2]
[389512997,1759690242532,-500.0,0.00016986,2]
[389512998,1759690242544,-500.0,0.00016986,2]
[389512999,1759690242556,-500.0,0.00016986,2]
[389513000,1759690242567,-608.2,0.00016986,2]
[389513001,1759690242579,-500.0,0.00016986,2]
[389513002,1759690242590,-770.32,0.00016986,2]
[389513003,1759690242600,-571.98,0.00016986,2]
[389513004,1759690242611,-500.0,0.00016986,2]
[389513005,1759690242623,-500.0,0.00016986,2]
[389513006,1759690242633,-500.0,0.00016986,2]
[389513007,1759690242645,-1348.02,0.00016986,2]
[389513008,1759690242656,-725.89,0.00016986,2]
[389513009,1759690242666,-500.0,0.00016986,2]
[389513010,1759690242677,-500.0,0.00016986,2]
[389513011,1759690242687,-500.0,0.00016986,2]
[389513012,1759690242697,-632.19,0.00016986,2]
[389513013,1759690242708,-803.07,0.00016986,2]
[389513014,1759690242718,-500.0,0.00016986,2]
[389513015,1759690242729,-500.0,0.00016986,2]
[389513016,1759690242739,-500.0,0.00016986,2]
[389513017,1759690242750,-513.15,0.00016986,2]
[389513018,1759690242760,-500.0,0.00016986,2]
[389513019,1759690242772,-588.12,0.00016986,2]
[389513020,1759690242783,-500.0,0.00016986,2]
[389513021,1759690242793,-490.20991956,0.00016986,2]
[389513022,1759690242804,-500.0,0.00016986,2]
[389513023,1759690242816,-500.0,0.00016986,2]
[389513024,1759690242827,-500.0,0.00016986,2]
[389513025,1759690242838,-500.0,0.00016986,2]
[389513026,1759690242848,-671.29,0.00016986,2]
[389513027,1759690242858,-500.0,0.00016986,2]
[389513028,1759690242870,-500.0,0.00016986,2]
[389513029,1759690242880,-500.0,0.00016986,2]
[389513030,1759690242890,-500.0,0.00016986,2]
[389513031,1759690242902,-500.0,0.00016986,2]
[389513032,1759690242912,-500.0,0.00016986,2]
[389513033,1759690242923,-500.0,0.00016986,2]
[389513034,1759690242933,-850.93,0.00016986,2]
[389513035,1759690242945,-1711.35,0.00016986,2]
[389513036,1759690242955,-500.0,0.00016986,2]
[389513037,1759690242968,-500.0,0.00016986,2]
[389513038,1759690242980,-500.0,0.00016986,2]
[389513039,1759690242991,-500.0,0.00016986,2]
[389513040,1759690243001,-500.0,0.00016986,2]
[389513041,1759690243014,-500.0,0.00016986,2]
[389513042,1759690243024,-592.5,0.00016986,2]
[389513043,1759690243034,-1161.04,0.00016986,2]
[389513044,1759690243046,-451.36371341,0.00016986,2]
[389513045,1759690243057,-500.0,0.00016986,2]
[389513046,1759690243068,-500.0,0.00016986,2]
[389513047,1759690243079,-508.53,0.00016986,2]
[389513048,1759690243090,-500.0,0.00016986,2]
[389513049,1759690243100,-638.1,0.00016986,2]
[389513050,1759690243111,-1145.05,0.00016986,2]
[389513051,1759690243122,-500.0,0.00016986,2]
[389513052,1759690243132,-500.0,0.00016986,2]
[389513053,1759690243143,-500.0,0.00016986,2]
[389513054,1759690243154,-1975.5,0.00016986,2]
[389513055,1759690243164,-500.0,0.00016986,2]
[389513056,1759690243175,-500.0,0.00016986,2]
[389513057,1759690243186,-500.0,0.00016986,2]
[389513058,1759690243196,-500.0,0.00016986,2]
[389513059,1759690243208,-500.0,0.00016986,2]
[389513060,1759690243219,-740.03,0.00016986,2]
[389513061,1759690243230,-500.0,0.00016986,2]
[389513062,1759690243240,-1201.39,0.00016986,2]
[389513063,1759690243252,-500.0,0.00016986,2]
[389513064,1759690243263,-500.0,0.00016986,2]
[389513065,1759690243273,-500.0,0.00016986,2]
[389513066,1759690243284,-500.0,0.00016986,2]
[389513067,1759690243295,-522.22,0.00016986,2]
[389513068,1759690243305,-598.09,0.00016986,2]
[389513069,1759690243316,-500.0,0.00016986,2]
[389513070,1759690243326,-500.0,0.00016986,2]
[389513071,1759690243337,-500.0,0.00016986,2]
[389513072,1759690243348,-500.0,0.00016986,2]
[389513074,1759690243359,-867.48,0.00016986,2]
[389513076,1759690243370,-820.57,0.00016986,2]
[389513078,1759690243380,-500.0,0.00016986,2]
[389513080,1759690243391,-583.82,0.00016986,2]
[389513081,1759690243401,-1033.13,0.00016986,2]
[389513082,1759690243412,-1986.75,0.00016986,2]
[389513083,1759690243423,-810.99,0.00016986,2]
[389513084,1759690243433,-859.56,0.00016986,2]
[389513085,1759690243445,-500.0,0.00016986,2]
[389513086,1759690243456,-500.0,0.00016986,2]
[389513088,1759690243466,-500.0,0.00016986,2]
[389513089,1759690243477,-500.0,0.00016986,2]
[389513090,1759690243488,-1191.11,0.00016986,2]
[389513091,1759690243499,-500.0,0.00016986,2]
[389513092,1759690243510,-500.0,0.00016986,2]
[389513094,1759690243520,-564.2,0.00016986,2]
[389513095,1759690243530,-500.0,0.00016986,2]
[389513096,1759690243541,-500.0,0.00016986,2]
[389513097,1759690243552,-500.0,0.00016986,2]
[389513098,1759690243564,-500.0,0.00016986,2]
[389513099,1759690243574,-500.0,0.00016986,2]
[389513100,1759690243585,-500.0,0.00016986,2]
[389513101,1759690243595,-500.0,0.00016986,2]
[389513102,1759690243606,-500.0,0.00016986,2]
[389513103,1759690243617,-500.0,0.00016986,2]
[389513105,1759690243628,-1803.77,0.00016986,2]
[389513106,1759690243638,-500.0,0.00016986,2]
[389513107,1759690243648,-500.0,0.00016986,2]
[389513108,1759690243659,-500.0,0.00016986,2]
[389513109,1759690243669,-500.0,0.00016986,2]
[389513110,1759690243681,-710.55,0.00016986,2]
[389513111,1759690243691,-1021.33,0.00016986,2]
[389513112,1759690243702,-916.94,0.00016986,2]
[389513113,1759690243715,-712.18,0.00016986,2]
[389513114,1759690243726,-500.0,0.00016986,2]
[389513115,1759690243736,-500.0,0.00016986,2]
[389513116,1759690243747,-527.45,0.00016986,2]
[389513117,1759690243757,-500.0,0.00016986,2]
[389513118,1759690243767,-500.0,0.00016986,2]
[389513119,1759690243777,-803.39,0.00016986,2]
[389513120,1759690243787,-190.07540932,0.00016986,2]
[389513121,1759690243797,-5294.61,0.00016986,2]
[389513122,1759690243807,-1841.09,0.00016986,2]
[389513123,1759690243818,-500.0,0.00016986,2]
[389513124,1759690243827,-506.53877013,0.00016986,2]
[389513125,1759690243838,-609.93,0.00016986,2]
[389513126,1759690243848,-500.0,0.00016986,2]
[389513127,1759690243858,-1882.16,0.00016986,2]
[389513128,1759690243869,-500.0,0.00016986,2]
[389513129,1759690243879,-2614.89,0.00016986,2]
[389513130,1759690243889,-1212.78,0.00016986,2]
[389513131,1759690243899,-931.64,0.00016986,2]
[389513132,1759690243910,-500.0,0.00016986,2]
[389513133,1759690243921,-799.33,0.00016986,2]
[389513134,1759690243931,-500.0,0.00016986,2]
[389513135,1759690243942,-1076.54,0.00016986,2]
[389513136,1759690243952,-1637.09,0.00016986,2]
[389513137,1759690243963,-1156.93,0.00016986,2]
[389513138,1759690243977,-4145.12,0.00016986,2]
[389513140,1759690243987,-2983.63,0.00016986,2]
[389513142,1759690243997,-500.0,0.00016986,2]
[389513143,1759690244008,-561.75,0.00016986,2]
[389513144,1759690244019,-5428.36,0.00016986,2]
[389513145,1759690244029,-500.0,0.00016986,2]
[389513146,1759690244040,-653.69,0.00016986,2]
[389513147,1759690244052,-919.66,0.00016986,2]
[389513148,1759690244063,-500.0,0.00016986,2]
[389513149,1759690244073,-1285.52,0.00016986,2]
[389513150,1759690244083,-621.18,0.00016986,2]
[389513151,1759690244094,-1134.93,0.00016986,2]
[389513152,1759690244105,-500.0,0.00016986,2]
[389513153,1759690244115,-500.0,0.00016986,2]
[389513154,1759690244126,-3921.81,0.00016986,2]
[389513155,1759690244136,-512.86,0.00016986,2]
[389513156,1759690244147,-1191.71,0.00016986,2]
[389513157,1759690244158,-500.0,0.00016986,2]
[389513158,1759690244168,-617.49,0.00016986,2]
[389513159,1759690244179,-500.0,0.00016986,2]
[389513160,1759690244190,-2669.23,0.00016986,2]
[389513161,1759690244201,-3687.19,0.00016986,2]
[389513162,1759690244211,-590.44,0.00016986,2]
[389513163,1759690244222,-500.0,0.00016986,2]
[389513164,1759690244232,-484.64798756,0.00016986,2]
[389513165,1759690244243,-500.0,0.00016986,2]
[389513166,1759690244253,-594.65,0.00016986,2]
[389513167,1759690244264,-500.0,0.00016986,2]
[389513168,1759690244274,-873.61,0.00016986,2]
[389513169,1759690244284,-1974.94,0.00016986,2]
[389513170,1759690244294,-500.0,0.00016986,2]
[389513171,1759690244304,-1674.06,0.00016986,2]
[389513172,1759690244314,-671.95,0.00016986,2]
[389513173,1759690244325,-687.21,0.00016986,2]
[389513174,1759690244614,-1172.42,0.00016986,2]
[389513175,1759690244624,-3206.42,0.00016986,2]
[389513176,1759690244634,-1124.49,0.00016986,2]
[389513177,1759690244643,-2952.94,0.00016986,2]
[389513178,1759690244654,-1706.95,0.00016986,2]
[389513179,1759690244664,-870.65,0.00016986,2]
[389513180,1759690244674,-2360.24,0.00016986,2]
[389513181,1759690244685,-893.41,0.00016986,2]
[389513182,1759690244694,-500.0,0.00016986,2]
[389513183,1759690244703,-1400.52,0.00016986,2]
[389513184,1759690244713,-500.0,0.00016986,2]
[389513185,1759690244722,-766.29,0.00016986,2]
[389513186,1759690244732,-2388.91,0.00016986,2]
[389513187,1759690244741,-3105.25,0.00016986,2]
[389513188,1759690244751,-814.92,0.00016986,2]
[389513189,1759690244760,-500.0,0.00016986,2]
[389513190,1759690244769,-500.0,0.00016986,2]
[389513191,1759690244779,-1333.89,0.00016986,2]
[389513192,1759690244788,-3584.0,0.00016986,2]
[389513193,1759690244797,-1411.27,0.00016986,2]
[389513194,1759690244807,-500.0,0.00016986,2]
[389513195,1759690244816,-571.3,0.00016986,2]
[389513196,1759690244825,-7344.3,0.00016986,2]
[389513197,1759690244834,-547.55,0.00016986,2]
[389513198,1759690244844,-1343.31,0.00016986,2]
[389513199,1759690244853,-534.68,0.00016986,2]
[389513200,1759690244863,-500.0,0.00016986,2]
[389513201,1759690244872,-684.92,0.00016986,2]
[389513202,1759690244882,-500.0,0.00016986,2]
[389513203,1759690244891,-317.75780789,0.00016986,2]
[389513204,1759690244900,-706.12,0.00016986,2]
[389513205,1759690244910,-500.0,0.00016986,2]
[389513206,1759690244919,-500.0,0.00016986,2]
[389513207,1759690244929,-829.25,0.00016986,2]
[389513208,1759690244938,-500.0,0.00016986,2]
[389513209,1759690244947,-500.0,0.00016986,2]
[389513210,1759690244957,-500.0,0.00016986,2]
[389513211,1759690244967,-1374.88,0.00016986,2]
[389513212,1759690244978,-481.80959482,0.00016986,2]
[389513213,1759690244989,-1686.64,0.00016986,2]
[389513214,1759690244998,-500.0,0.00016986,2]
[389513215,1759690245008,-1683.72,0.00016986,2]
[389513216,1759690245018,-2085.55,0.00016986,2]
[389513217,1759690245028,-500.0,0.00016986,2]
[389513218,1759690245037,-1428.18,0.00016986,2]
[389513219,1759690245046,-5191.0,0.00016986,2]
[389513220,1759690245057,-500.0,0.00016986,2]
[389513221,1759690245067,-635.25,0.00016986,2]
[389513222,1759690245076,-518.49,0.00016986,2]
[389513223,1759690245086,-500.0,0.00016986,2]
[389513224,1759690245095,-1446.83555857,0.00017059,2]
[389513225,1759690245104,-904.2877432,0.00017196,2]
[389513226,1759690245113,-348.0,0.00017238,2]
[389513227,1759690245122,-162.380719,0.00017239,2]
[389513228,1759690245131,-198.51023739,0.00017239,2]
[389513229,1759690245140,-18603.8837,0.00017239,2]
[389513230,1759690245150,-500.0,0.0001726,2]
[389513231,1759690245159,-500.0,0.0001726,2]
[389513232,1759690245168,-500.0,0.0001726,2]
[389513233,1759690245177,-500.0,0.0001726,2]
[389513234,1759690245186,-608.2,0.0001726,2]
[389513235,1759690245197,-561.15140565,0.0001726,2]
[389513236,1759690245207,-770.32,0.0001726,2]
[389513237,1759690245216,-571.98,0.0001726,2]
[389513238,1759690245225,-500.0,0.0001726,2]
[389513239,1759690245235,-500.0,0.0001726,2]
[389513240,1759690245245,-500.0,0.0001726,2]
[389513241,1759690245255,-1348.02,0.0001726,2]
[389513242,1759690245265,-725.89,0.0001726,2]
[389513243,1759690245274,-500.0,0.0001726,2]
[389513244,1759690245285,-500.0,0.0001726,2]
[389513245,1759690245295,-500.0,0.0001726,2]
[389513246,1759690245305,-632.19,0.0001726,2]
[389513247,1759690245314,-803.07,0.0001726,2]
[389513248,1759690245324,-500.0,0.0001726,2]
[389513249,1759690245334,-500.0,0.0001726,2]
[389513250,1759690245343,-513.15,0.0001726,2]
[389513251,1759690245352,-500.0,0.0001726,2]
[389513252,1759690245362,-588.12,0.0001726,2]
[389513253,1759690245371,-500.0,0.0001726,2]
[389513254,1759690245381,-500.0,0.0001726,2]
[389513255,1759690245391,-500.0,0.0001726,2]
[389513256,1759690245402,-500.0,0.0001726,2]
[389513257,1759690245412,-671.29,0.0001726,2]
[389513258,1759690245422,-500.0,0.0001726,2]
[389513259,1759690245432,-500.0,0.0001726,2]
[389513260,1759690245442,-500.0,0.0001726,2]
[389513261,1759690245451,-184.6634847,0.0001726,2]
[389513262,1759690245461,-500.0,0.0001726,2]
[389513263,1759690245470,-850.93,0.0001726,2]
[389513264,1759690245481,-1711.35,0.0001726,2]
[389513265,1759690245490,-500.0,0.0001726,2]
[389513266,1759690245499,-500.0,0.0001726,2]
[389513267,1759690245509,-500.0,0.0001726,2]
[389513268,1759690245519,-500.0,0.0001726,2]
[389513269,1759690245528,-500.0,0.0001726,2]
[389513270,1759690245537,-500.0,0.0001726,2]
[389513271,1759690245546,-592.5,0.0001726,2]
[389513272,1759690245556,-1161.04,0.0001726,2]
[389513273,1759690245565,-500.0,0.0001726,2]
[389513274,1759690245576,-500.0,0.0001726,2]
[389513275,1759690245585,-508.53,0.0001726,2]
[389513276,1759690245594,-500.0,0.0001726,2]
[389513277,1759690245603,-638.1,0.0001726,2]
[389513278,1759690245612,-1145.05,0.0001726,2]
[389513279,1759690245621,-500.0,0.0001726,2]
[389513280,1759690245630,-500.0,0.0001726,2]
[389513281,1759690245639,-500.0,0.0001726,2]
[389513282,1759690245649,-1975.5,0.0001726,2]
[389513283,1759690245658,-500.0,0.0001726,2]
[389513284,1759690245668,-382.54202202,0.0001726,2]
[389513285,1759690245677,-500.0,0.0001726,2]
[389513286,1759690245687,-500.0,0.0001726,2]
[389513287,1759690245696,-500.0,0.0001726,2]
[389513288,1759690245705,-740.03,0.0001726,2]
[389513289,1759690245714,-500.0,0.0001726,2]
[389513290,1759690245723,-1201.39,0.0001726,2]
[389513291,1759690245733,-341.61264277,0.0001726,2]
[389513292,1759690245742,-500.0,0.0001726,2]
[389513293,1759690245751,-500.0,0.0001726,2]
[389513294,1759690245760,-500.0,0.0001726,2]
[389513295,1759690245769,-522.22,0.0001726,2]
[389513296,1759690245778,-598.09,0.0001726,2]
[389513297,1759690245787,-500.0,0.0001726,2]
[389513298,1759690245796,-500.0,0.0001726,2]
[389513299,1759690245805,-500.0,0.0001726,2]
[389513300,1759690245814,-500.0,0.0001726,2]
[389513301,1759690245824,-867.48,0.0001726,2]
[389513302,1759690245834,-820.57,0.0001726,2]
[389513303,1759690245843,-583.82,0.0001726,2]
[389513304,1759690245852,-1033.13,0.0001726,2]
[389513305,1759690245862,-1986.75,0.0001726,2]
[389513306,1759690245871,-810.99,0.0001726,2]
[389513307,1759690245880,-859.56,0.0001726,2]
[389513308,1759690245890,-583.79487945,0.0001726,2]
[389513309,1759690245899,-500.0,0.0001726,2]
[389513310,1759690245909,-500.0,0.0001726,2]
[389513311,1759690245919,-500.0,0.0001726,2]
[389513312,1759690245929,-1191.11,0.0001726,2]
[389513313,1759690245939,-500.0,0.0001726,2]
[389513314,1759690245948,-500.0,0.0001726,2]
[389513315,1759690245958,-564.2,0.0001726,2]
[389513316,1759690245967,-500.0,0.0001726,2]
[389513317,1759690245978,-500.0,0.0001726,2]
[389513318,1759690245987,-500.0,0.0001726,2]
[389513319,1759690245996,-500.0,0.0001726,2]
[389513320,1759690246008,-500.0,0.0001726,2]
[389513321,1759690246016,-500.0,0.0001726,2]
[389513322,1759690246026,-500.0,0.0001726,2]
[389513323,1759690246035,-284.09574521,0.0001726,2]
[389513324,1759690246044,-500.0,0.0001726,2]
[389513325,1759690246054,-1803.77,0.0001726,2]
[389513326,1759690246063,-500.0,0.0001726,2]
[389513327,1759690246072,-500.0,0.0001726,2]
[389513328,1759690246081,-500.0,0.0001726,2]
[389513330,1759690246095,-710.55,0.0001726,2]
[389513332,1759690246104,-1021.33,0.0001726,2]
[389513333,1759690246113,-916.94,0.0001726,2]
[389513334,1759690246122,-712.18,0.0001726,2]
[389513335,1759690246133,-500.0,0.0001726,2]
[389513336,1759690246142,-500.0,0.0001726,2]
[389513337,1759690246152,-527.45,0.0001726,2]
[389513338,1759690246161,-500.0,0.0001726,2]
[389513339,1759690246170,-500.0,0.0001726,2]
[389513340,1759690246180,-803.39,0.0001726,2]
[389513341,1759690246189,-5294.61,0.0001726,2]
[389513342,1759690246199,-1841.09,0.0001726,2]
[389513343,1759690246208,-500.0,0.0001726,2]
[389513344,1759690246220,-609.93,0.0001726,2]
[389513345,1759690246230,-500.0,0.0001726,2]
[389513346,1759690246239,-1882.16,0.0001726,2]
[389513347,1759690246248,-500.0,0.0001726,2]
[389513348,1759690246258,-2614.89,0.0001726,2]
[389513350,1759690246267,-1212.78,0.0001726,2]
[389513351,1759690246276,-931.64,0.0001726,2]
[389513352,1759690246286,-500.0,0.0001726,2]
[389513353,1759690246295,-799.33,0.0001726,2]
[389513354,1759690246304,-500.0,0.0001726,2]
[389513355,1759690246313,-1076.54,0.0001726,2]
[389513356,1759690246323,-1637.09,0.0001726,2]
[389513357,1759690246332,-1156.93,0.0001726,2]
[389513358,1759690246343,-4145.12,0.0001726,2]
[389513359,1759690246352,-2983.63,0.0001726,2]
[389513361,1759690246362,-500.0,0.0001726,2]
[389513362,1759690246371,-561.75,0.0001726,2]
[389513363,1759690246380,-5428.36,0.0001726,2]
[389513364,1759690246390,-500.0,0.0001726,2]
[389513365,1759690246399,-653.69,0.0001726,2]
[389513367,1759690246408,-919.66,0.0001726,2]
[389513369,1759690246420,-500.0,0.0001726,2]
[389513371,1759690246429,-1285.52,0.0001726,2]
[389513372,1759690246438,-621.18,0.0001726,2]
[389513373,1759690246447,-1134.93,0.0001726,2]
[389513374,1759690246457,-500.0,0.0001726,2]
[389513375,1759690246466,-500.0,0.0001726,2]
[389513376,1759690246475,-3921.81,0.0001726,2]
[389513377,1759690246486,-512.86,0.0001726,2]
[389513378,1759690246496,-1191.71,0.0001726,2]
[389513379,1759690246506,-617.49,0.0001726,2]
[389513381,1759690246515,-500.0,0.0001726,2]
[389513382,1759690246524,-2669.23,0.0001726,2]
[389513383,1759690246533,-3687.19,0.0001726,2]
[389513384,1759690246541,-590.44,0.0001726,2]
[389513385,1759690246550,-500.0,0.0001726,2]
[389513386,1759690246560,-500.0,0.0001726,2]
[389513387,1759690246570,-594.65,0.0001726,2]
[389513388,1759690246579,-500.0,0.0001726,2]
[389513389,1759690246588,-873.61,0.0001726,2]
[389513390,1759690246597,-1974.94,0.0001726,2]
[389513391,1759690246607,-1674.06,0.0001726,2]
[389513392,1759690246617,-671.95,0.0001726,2]
[389513393,1759690246627,-687.21,0.0001726,2]
[389513394,1759690246637,-1172.42,0.0001726,2]
[389513395,1759690246648,-3206.42,0.0001726,2]
[389513396,1759690246657,-1124.49,0.0001726,2]
[389513397,1759690246667,-2952.94,0.0001726,2]
[389513398,1759690246676,-1706.95,0.0001726,2]
[389513399,1759690246686,-870.65,0.0001726,2]
[389513400,1759690246696,-2360.24,0.0001726,2]
[389513401,1759690246705,-893.41,0.0001726,2]
[389513402,1759690246714,-500.0,0.0001726,2]
[389513403,1759690246724,-1400.52,0.0001726,2]
[389513404,1759690246733,-500.0,0.0001726,2]
[389513405,1759690246742,-766.29,0.0001726,2]